bitfinex-derivatives/quotes_BNBF0:USTF0_20250303
["timestamp","ask_amount","ask_price","bid_price","bid_amount"]
[1741007980965,3.664,604.58,604.22,1.2293614]
[1741007981364,1.28983496,604.57,604.22,1.2293614]
[1741007982070,1.28983496,604.56,604.22,1.2293614]
[1741007982570,3.664,604.58,604.22,1.2293614]
[1741007982870,3.664,604.58,604.05,0.33109841]
[1741007983270,1.28988351,604.57,604.05,0.33109841]
[1741007983664,3.16088351,604.57,604.05,0.33109841]
[1741007983969,1.871,604.57,604.05,0.33109841]
[1741007987171,1.871,604.57,604.07,1.2293614]
[1741007988676,1.871,604.57,604.05,0.33109841]
[1741007991378,1.2901062,604.56,604.05,0.33109841]
[1741007992077,1.871,604.57,604.05,0.33109841]
[1741007992875,1.871,604.57,604.19,1.2293614]
[1741007993378,1.29013109,604.56,604.19,1.2293614]
[1741007994078,1.29013109,604.55,604.19,1.2293614]
[1741007994879,1.29013109,604.54,604.22,1.2293614]
[1741007995279,1.871,604.57,604.22,1.2293614]
[1741007996282,1.2903549,604.56,604.22,1.2293614]
[1741007996883,1.2903549,604.55,604.22,1.2293614]
[1741007997578,1.2903549,604.55,604.14,1.2293614]
[1741007997887,2.8413549,604.54,604.14,1.2293614]
[1741007998385,1.551,604.54,604.14,1.2293614]
[1741007999380,1.551,604.54,604.05,0.33109841]
[1741007999381,1.551,604.54,604.15,1.2293614]
[1741007999582,1.29058648,604.53,604.15,1.2293614]
[1741007999982,1.551,604.54,604.15,1.2293614]
[1741008000781,1.869,604.53,604.15,1.2293614]
[1741008001785,1.72761159,604.52,604.15,1.2293614]
[1741008001989,5.74586061,604.52,604.15,1.2293614]
[1741008002284,5.74586061,604.52,604.12,1.2293614]
[1741008002285,1.517,604.51,604.12,1.2293614]
[1741008002489,3.24461873,604.51,604.12,1.2293614]
[1741008002990,3.35664053,604.5,604.12,1.2293614]
[1741008003789,3.35664053,604.49,604.12,1.2293614]
[1741008004192,3.35664053,604.48,604.12,1.2293614]
[1741008004791,3.35664053,604.48,604.05,0.33109841]
[1741008004990,3.35664053,604.47,604.05,0.33109841]
[1741008005385,1.72794042,604.46,604.05,0.33109841]
[1741008005990,3.35664053,604.45,604.05,0.33109841]
[1741008006687,1.29101559,604.44,604.05,0.33109841]
[1741008007691,1.72794042,604.46,604.05,0.33109841]
[1741008007692,1.29101559,604.43,604.05,0.33109841]
[1741008008193,1.29101559,604.42,604.05,0.33109841]
[1741008008893,1.517,604.51,604.05,0.33109841]
[1741008009895,1.28806733,604.5,604.05,0.33109841]
[1741008010890,1.28806733,604.49,604.05,0.33109841]
[1741008011600,1.517,604.51,604.05,0.33109841]
[1741008012498,1.28777858,604.5,604.05,0.33109841]
[1741008013392,1.517,604.51,604.05,0.33109841]
[1741008025106,1.938,604.5,604.05,0.33109841]
[1741008030916,1.631,604.49,604.05,0.33109841]
[1741008031915,2.33,604.48,604.09,1.2293614]
[1741008033613,1.383,604.47,604.09,1.2293614]
[1741008033815,1.383,604.47,604.05,0.33109841]
[1741008042518,1.383,604.47,604.07,1.2293614]
[1741008044022,1.383,604.47,604.09,1.2293614]
[1741008045721,1.383,604.47,604.05,1.56045981]
[1741008047317,1.383,604.47,604.05,0.33109841]
[1741008048225,1.492,604.46,604.05,0.33109841]
[1741008052228,1.273,604.45,604.05,0.33109841]
[1741008052826,1.273,604.45,604.1,1.2293614]
[1741008054229,1.273,604.45,604.05,0.33109841]
[1741008062436,2.818,604.45,604.05,0.33109841]
[1741008065137,2.818,604.45,604.05,1.56045981]
[1741008065744,4.269,604.45,604.05,1.56045981]
[1741008066845,4.269,604.45,604.05,0.33109841]
[1741008071145,4.269,604.45,604.1,1.2293614]
[1741008073647,4.269,604.45,604.19,1.2293614]
[1741008075844,4.269,604.45,604.21,1.2293614]
[1741008077446,4.269,604.45,604.25,1.2293614]
[1741008078646,4.269,604.45,604.32,1.2293614]
[1741008079151,2.996,604.45,604.32,1.2293614]
[1741008080949,1.545,604.45,604.32,1.2293614]
[1741008082755,1.545,604.45,604.35,1.2293614]
[1741008085148,1.545,604.45,604.32,1.2293614]
[1741008087662,1.545,604.45,604.31,1.2293614]
[1741008089664,1.545,604.45,604.12,1.2293614]
[1741008090163,1.545,604.45,604.13,0.33105457]
[1741008092066,1.545,604.45,604.3,1.47473745]
[1741008093666,1.545,604.45,604.37,1.22756322]
[1741008095862,1.545,604.45,604.33,1.22756322]
[1741008098672,1.545,604.45,604.4,1.22756322]
[1741008100570,1.545,604.45,604.36,1.22756322]
[1741008102273,1.545,604.45,604.35,1.22756322]
[1741008103773,1.545,604.45,604.32,1.22756322]
[1741008104570,1.71,604.51,604.32,1.22756322]
[1741008106283,3.04,604.51,604.32,1.22756322]
[1741008106482,3.04,604.51,604.27,1.22756322]
[1741008106682,3.04,604.51,604.28,0.33097239]
[1741008106882,1.33,604.51,604.28,0.33097239]
[1741008110084,1.218,604.5,604.28,0.33097239]
[1741008112883,1.686,604.49,604.28,0.33097239]
[1741008115887,1.686,604.49,604.34,1.22756322]
[1741008118192,1.686,604.49,604.4,1.22756322]
[1741008120287,1.686,604.49,604.28,0.33097239]
[1741008128892,1.686,604.49,604.36,1.47473745]
[1741008130093,1.686,604.49,604.37,0.33092311]
[1741008130994,1.686,604.49,604.42,1.47473745]
[1741008132397,1.686,604.49,604.37,0.33092311]
[1741008136197,1.686,604.49,604.38,1.22738725]
[1741008137800,1.686,604.49,604.46,1.22738725]
[1741008139500,1.686,604.49,604.45,1.22738725]
[1741008140802,1.276,604.59,604.45,1.22738725]
[1741008141203,1.276,604.59,604.37,0.33092311]
[1741008141204,1.276,604.59,604.48,1.22738725]
[1741008144105,1.276,604.59,604.51,1.22738725]
[1741008145304,1.276,604.59,604.44,1.22738725]
[1741008147809,1.276,604.59,604.5,1.22738725]
[1741008150010,1.791,604.61,604.5,1.47473745]
[1741008151611,1.791,604.61,604.37,0.33092311]
[1741008151612,1.791,604.61,604.59,1.22580145]
[1741008153012,1.791,604.61,604.47,1.47473745]
[1741008153213,1.791,604.61,604.47,1.80560581]
[1741008153812,1.791,604.61,604.48,0.33086289]
[1741008155613,1.431,604.67,604.48,0.33086289]
[1741008158015,1.431,604.67,604.63,1.22240791]
[1741008160521,1.431,604.67,604.56,1.22240791]
[1741008160715,1.431,604.67,604.57,0.33081363]
[1741008165223,1.42124608,604.67,604.57,0.33081363]
[1741008169021,1.534,604.7,604.57,0.33081363]
[1741008173532,1.177,604.78,604.57,0.33081363]
[1741008175232,1.391,604.82,604.57,0.33081363]
[1741008178332,3.232,604.82,604.57,0.33081363]
[1741008186240,4.957,604.82,604.6,1.22240791]
[1741008188636,4.957,604.82,604.57,0.33081363]
[1741008189135,4.957,604.82,604.49,1.22240791]
[1741008190037,4.957,604.82,604.39,1.22240791]
[1741008191939,4.957,604.82,604.33,1.22240791]
[1741008193744,4.957,604.82,604.08,1.22240791]
[1741008193942,4.957,604.82,604.09,0.33107649]
[1741008200350,4.957,604.82,604.17,1.22240791]
[1741008200555,4.957,604.82,604.18,0.33102717]
[1741008204556,4.957,604.82,604.21,1.22240791]
[1741008204755,4.957,604.82,604.22,0.33100526]
[1741008206958,4.957,604.82,604.33,1.22240791]
[1741008207153,4.957,604.82,604.34,0.33093953]
[1741008210263,4.957,604.82,604.42,1.22240791]
[1741008210565,4.957,604.82,604.43,0.33089026]
[1741008212566,4.957,604.82,604.46,1.22240791]
[1741008212866,4.957,604.82,604.47,0.33086836]
[1741008214661,4.957,604.82,604.62,1.22240791]
[1741008214863,4.957,604.82,604.63,0.3307808]
[1741008222673,4.957,604.82,604.8,1.22240791]
[1741008222872,3.566,604.82,604.81,0.33068236]
[1741008223070,1.894,604.93,604.81,0.33068236]
[1741008223671,1.72552001,605.61,604.81,0.33068236]
[1741008224271,4.29287042,605.91,604.81,0.33068236]
[1741008224470,1.65112259,605.9,604.81,0.33068236]
[1741008224667,1.72482157,605.6,604.81,0.33068236]
[1741008224868,1.65112259,605.88,604.81,0.33068236]
[1741008225068,1.65112259,605.87,604.81,0.33068236]
[1741008225272,1.72482869,605.59,604.81,0.33068236]
[1741008226070,3.739,605.58,604.81,0.33068236]
[1741008231481,1.2762876,605.57,604.81,0.33068236]
[1741008232281,1.2762876,605.56,604.81,0.33068236]
[1741008232687,1.2762876,605.55,604.81,0.33068236]
[1741008233288,3.739,605.58,604.81,0.33068236]
[1741008234583,1.27486597,605.57,604.81,0.33068236]
[1741008235090,1.27486597,605.56,604.81,0.33068236]
[1741008235491,1.27486597,605.55,604.81,0.33068236]
[1741008235691,2.45286597,605.55,604.81,0.33068236]
[1741008236191,1.27486597,605.54,604.81,0.33068236]
[1741008236695,3.00055711,605.54,604.81,0.33068236]
[1741008236893,1.27486597,605.53,604.81,0.33068236]
[1741008237088,1.27486597,605.52,604.81,0.33068236]
[1741008237894,1.27486597,605.51,604.81,0.33068236]
[1741008238794,1.27486597,605.5,604.81,0.33068236]
[1741008239497,1.27486597,605.49,604.81,0.33068236]
[1741008240089,1.72565549,605.52,604.81,0.33068236]
[1741008240897,1.27377346,605.51,604.81,0.33068236]
[1741008241394,1.258,605.5,604.81,0.33068236]
[1741008241595,2.53177346,605.5,604.81,0.33068236]
[1741008242293,1.258,605.5,604.81,0.33068236]
[1741008247206,1.27293525,605.49,604.81,0.33068236]
[1741008247706,1.27293525,605.48,604.81,0.33068236]
[1741008248303,1.258,605.5,604.81,0.33068236]
[1741008251504,1.258,605.5,604.95,1.22240791]
[1741008252406,2.162,605.49,604.95,1.22240791]
[1741008254312,2.162,605.49,604.81,0.33068236]
[1741008254313,2.162,605.49,605.05,1.22240791]
[1741008256106,2.162,605.49,605.0,1.22240791]
[1741008258314,2.162,605.49,605.07,1.22240791]
[1741008260118,1.61,605.48,605.07,1.22240791]
[1741008260619,1.61,605.48,604.99,1.22240791]
[1741008263217,1.61,605.48,604.81,0.33068236]
[1741008263218,1.61,605.48,605.05,1.22240791]
[1741008263520,1.61,605.48,605.06,0.33054573]
[1741008264622,1.224,605.47,605.06,0.33054573]
[1741008266020,1.224,605.47,605.25,1.22240791]
[1741008268223,1.224,605.47,605.3,1.22240791]
[1741008270521,1.224,605.47,605.27,1.22240791]
[1741008272128,1.224,605.47,605.14,1.22240791]
[1741008274534,1.224,605.47,605.11,1.22240791]
[1741008277039,1.224,605.47,605.06,0.33054573]
[1741008280535,1.155,605.46,605.06,0.33054573]
[1741008285342,1.155,605.46,605.25,1.22240791]
[1741008287243,1.147,605.45,605.25,1.22240791]
[1741008288344,1.147,605.45,605.18,1.22240791]
[1741008290249,1.147,605.45,605.06,0.33054573]
[1741008290250,1.147,605.45,605.09,1.22240791]
[1741008292957,2.611,605.45,605.06,0.33054573]
[1741008294847,4.071,605.45,605.06,0.33054573]
[1741008297151,4.071,605.45,605.12,1.22240791]
[1741008299254,4.071,605.45,605.06,0.33054573]
[1741008299255,4.071,605.45,605.18,1.22240791]
[1741008300950,4.071,605.45,605.06,0.33054573]
[1741008300951,4.071,605.45,605.32,1.22240791]
[1741008303057,4.071,605.45,605.08,1.22240791]
[1741008303757,5.351,605.45,605.08,1.22240791]
[1741008305860,5.351,605.45,605.06,0.33054573]
[1741008307956,5.351,605.45,605.06,1.55295364]
[1741008309861,5.351,605.45,605.1,1.22240791]
[1741008312168,5.351,605.45,605.11,1.22240791]
[1741008314070,5.351,605.45,605.08,1.22240791]
[1741008315475,5.351,605.45,605.06,0.33054573]
[1741008315476,5.351,605.45,605.14,1.22240791]
[1741008316979,5.351,605.45,605.17,1.22240791]
[1741008319380,5.351,605.45,605.15,1.22240791]
[1741008321382,5.351,605.45,605.17,1.22240791]
[1741008322785,5.351,605.45,605.06,0.33054573]
[1741008327285,5.351,605.45,605.32,1.22240791]
[1741008327681,1.72475746,605.65,605.32,1.22240791]
[1741008328087,3.3522299,605.64,605.32,1.22240791]
[1741008328781,1.28931919,605.63,605.32,1.22240791]
[1741008329488,1.28931919,605.63,605.21,1.22240791]
[1741008329685,1.28931919,605.62,605.21,1.22240791]
[1741008330289,1.28931919,605.61,605.21,1.22240791]
[1741008330788,4.823,605.6,605.21,1.22240791]
[1741008331190,4.823,605.6,605.11,1.22240791]
[1741008332883,4.823,605.6,605.24,1.22240791]
[1741008334692,1.56,605.59,605.24,1.22240791]
[1741008335797,1.56,605.59,605.35,1.22240791]
[1741008338291,1.56,605.59,605.06,0.33054573]
[1741008338292,1.56,605.59,605.42,1.22240791]
[1741008340202,1.56,605.59,605.28,1.22240791]
[1741008341802,1.56,605.59,605.29,1.22240791]
[1741008344702,1.28893899,605.58,605.29,1.22240791]
[1741008345098,1.56,605.59,605.29,1.22240791]
[1741008346598,1.56,605.59,605.15,1.22240791]
[1741008348903,1.56,605.59,605.06,0.33054573]
[1741008348904,1.56,605.59,605.17,1.22240791]
[1741008350810,1.56,605.59,605.06,0.33054573]
[1741008351606,1.28881778,605.58,605.06,0.33054573]
[1741008352310,1.28881778,605.57,605.06,0.33054573]
[1741008352511,1.56,605.59,605.06,0.33054573]
[1741008353011,1.28880037,605.58,605.06,0.33054573]
[1741008353406,1.56,605.59,605.06,0.33054573]
[1741008354609,1.28879672,605.58,605.06,0.33054573]
[1741008355412,1.56,605.59,605.06,0.33054573]
[1741008356015,2.008,605.58,605.06,0.33054573]
[1741008357110,1.28881193,605.57,605.06,0.33054573]
[1741008358218,1.28881193,605.56,605.06,0.33054573]
[1741008359018,1.781,605.55,605.06,0.33054573]
[1741008359318,3.06981193,605.55,605.06,0.33054573]
[1741008360615,1.781,605.55,605.06,0.33054573]
[1741008361320,1.2890095,605.54,605.06,0.33054573]
[1741008361722,1.2890095,605.53,605.06,0.33054573]
[1741008362419,1.2890095,605.52,605.06,0.33054573]
[1741008363022,1.2890095,605.51,605.06,0.33054573]
[1741008363621,1.2890095,605.5,605.06,0.33054573]
[1741008364022,1.2890095,605.49,605.06,0.33054573]
[1741008365023,1.2890095,605.48,605.06,0.33054573]
[1741008365918,1.72501394,605.5,605.06,0.33054573]
[1741008366523,1.836,605.49,605.06,1.55295364]
[1741008366721,2.05843908,605.48,605.06,1.55295364]
[1741008367526,1.28612934,605.47,605.06,1.55295364]
[1741008367923,1.28612934,605.46,605.06,1.55295364]
[1741008368426,1.836,605.49,605.06,0.33054573]
[1741008372725,1.28548063,605.48,605.06,0.33054573]
[1741008373128,1.82,605.47,605.06,0.33054573]
[1741008374428,1.28527997,605.46,605.06,0.33054573]
[1741008375030,3.54497119,605.47,605.06,0.33054573]
[1741008377533,1.82,605.47,605.06,0.33054573]
[1741008377734,3.54497831,605.47,605.06,0.33054573]
[1741008378134,1.28458832,605.46,605.06,0.33054573]
[1741008378834,1.28458832,605.45,605.06,0.33054573]
[1741008379736,1.28458832,605.44,605.06,0.33054573]
[1741008380137,3.54497831,605.47,605.06,0.33054573]
[1741008380743,1.28415959,605.46,605.06,0.33054573]
[1741008381235,1.28415959,605.45,604.91,1.22240791]
[1741008381436,1.28415959,605.45,604.51,1.22240791]
[1741008381634,1.28415959,605.45,604.53,0.33083552]
[1741008381839,1.28415959,605.44,604.53,0.33083552]
[1741008382741,1.28415959,605.43,604.53,0.33083552]
[1741008383139,3.54497831,605.47,604.53,0.33083552]
[1741008383342,1.82,605.47,604.53,0.33083552]
[1741008383738,3.00885244,605.46,604.53,0.33083552]
[1741008383940,3.00885244,605.46,604.66,1.22240791]
[1741008384140,3.00885244,605.46,604.67,0.33075892]
[1741008384540,1.28351066,605.45,604.67,0.33075892]
[1741008385142,1.72534178,605.46,604.67,0.33075892]
[1741008386441,1.82,605.47,604.67,0.33075892]
[1741008386442,1.28314147,605.45,604.67,0.33075892]
[1741008386643,3.00841197,605.45,604.73,1.22240791]
[1741008386846,3.00841197,605.45,604.73,1.55313401]
[1741008387145,1.28314147,605.44,604.73,1.55313401]
[1741008387741,1.7252705,605.45,604.73,1.55313401]
[1741008389147,3.5442705,605.45,604.73,0.3307261]
[1741008389447,1.819,605.45,604.73,0.3307261]
[1741008389645,1.72524199,605.44,604.73,0.3307261]
[1741008389945,3.00753862,605.44,604.73,0.3307261]
[1741008390445,1.28229663,605.43,604.73,0.3307261]
[1741008390845,1.72524199,605.44,604.73,0.3307261]
[1741008391050,1.72524199,605.44,604.76,1.22240791]
[1741008391240,3.36024199,605.44,604.76,1.22240791]
[1741008392547,1.635,605.44,604.76,1.22240791]
[1741008392746,1.72528476,605.43,604.76,1.22240791]
[1741008393447,1.72528476,605.43,604.75,1.22240791]
[1741008393754,1.539,605.42,604.75,1.22240791]
[1741008394346,1.2820277,605.41,604.75,1.22240791]
[1741008395149,1.539,605.42,604.75,1.22240791]
[1741008395651,1.72523486,605.41,604.73,0.3307261]
[1741008398149,1.72523486,605.41,604.78,1.22240791]
[1741008398349,1.539,605.42,604.78,1.22240791]
[1741008398350,2.254,605.4,604.78,1.22240791]
[1741008399754,2.254,605.4,604.79,1.22240791]
[1741008401656,1.72530614,605.39,604.84,1.22240791]
[1741008403249,1.72530614,605.39,604.73,0.3307261]
[1741008403250,1.72530614,605.39,604.85,1.22240791]
[1741008404461,1.2831574,605.38,604.85,1.22240791]
[1741008404657,3.00848493,605.38,604.85,1.22240791]
[1741008405062,1.2831574,605.37,604.85,1.22240791]
[1741008405259,1.72532753,605.38,604.85,1.22240791]
[1741008405461,1.72532753,605.38,604.73,0.3307261]
[1741008407255,1.72532753,605.38,605.0,1.22240791]
[1741008409065,1.28353241,605.37,605.0,1.22240791]
[1741008409459,1.28353241,605.37,604.89,1.22240791]
[1741008409660,1.28353241,605.36,604.89,1.22240791]
[1741008410064,1.614,605.35,604.89,1.22240791]
[1741008410660,1.72529901,605.34,604.89,1.22240791]
[1741008410864,1.72529901,605.34,604.9,1.22240791]
[1741008412564,1.342,605.33,604.86,1.22240791]
[1741008415667,1.28521385,605.32,604.86,1.22240791]
[1741008416265,1.342,605.33,604.86,1.22240791]
[1741008416463,1.342,605.33,604.88,1.22240791]
[1741008418069,1.28587517,605.32,604.88,1.22240791]
[1741008419070,1.28587517,605.31,604.78,1.22240791]
[1741008419868,1.28587517,605.3,604.78,1.22240791]
[1741008420671,1.28587517,605.29,604.79,1.22240791]
[1741008421273,3.34487442,605.28,604.79,1.22240791]
[1741008421976,3.34487442,605.27,604.79,1.22240791]
[1741008422578,3.34487442,605.26,604.74,1.22240791]
[1741008422777,5.07044434,605.26,604.74,1.22240791]
[1741008422978,3.34487442,605.25,604.74,1.22240791]
[1741008423478,3.34487442,605.24,604.74,1.22240791]
[1741008424483,3.34487442,605.23,604.79,1.22240791]
[1741008425176,3.34487442,605.22,604.79,1.22240791]
[1741008425975,1.28587517,605.21,604.79,1.22240791]
[1741008426373,1.28587517,605.21,604.77,1.22240791]
[1741008426584,1.28587517,605.2,604.77,1.22240791]
[1741008427185,1.28587517,605.19,604.77,1.22240791]
[1741008427586,3.27587517,605.19,604.77,1.22240791]
[1741008428188,1.28587517,605.18,604.77,1.22240791]
[1741008428688,1.287,605.17,604.77,1.22240791]
[1741008428888,2.57287517,605.17,604.77,1.22240791]
[1741008429088,2.57287517,605.17,604.76,1.22240791]
[1741008429483,1.287,605.17,604.76,1.22240791]
[1741008430085,1.28671059,605.16,604.76,1.22240791]
[1741008430882,1.287,605.17,604.76,1.22240791]
[1741008430883,1.28671059,605.15,604.76,1.22240791]
[1741008431782,5.07123797,605.14,604.71,1.22240791]
[1741008432087,3.34534713,605.13,604.71,1.22240791]
[1741008432789,3.34534713,605.12,604.71,1.22240791]
[1741008433192,1.28671059,605.11,604.71,1.22240791]
[1741008433584,1.325,605.1,604.71,1.22240791]
[1741008433785,4.06671059,605.1,604.71,1.22240791]
[1741008433992,4.06671059,605.1,604.49,1.22240791]
[1741008434494,1.28671059,605.09,604.49,1.22240791]
[1741008435089,2.78,605.1,604.5,0.33085194]
[1741008436096,2.78,605.1,604.52,1.22240791]
[1741008438292,2.78,605.1,604.5,0.33085194]
[1741008438293,2.78,605.1,604.76,1.22240791]
[1741008440592,2.78,605.1,604.58,1.22240791]
[1741008442199,2.78,605.1,604.5,0.33085194]
[1741008442200,2.78,605.1,604.52,1.22240791]
[1741008444501,2.78,605.1,604.59,1.22240791]
[1741008445904,1.508,605.09,604.59,1.22240791]
[1741008446502,1.508,605.09,604.58,1.22240791]
[1741008448206,1.508,605.09,604.65,1.22240791]
[1741008450608,1.508,605.09,604.66,0.33076439]
[1741008450911,1.508,605.09,604.68,1.22240791]
[1741008452109,1.508,605.09,604.69,0.33074798]
[1741008461013,1.582,605.08,604.69,0.33074798]
[1741008461719,1.582,605.08,604.79,1.22240791]
[1741008462017,3.437,605.08,604.79,1.22240791]
[1741008466317,3.437,605.08,604.78,1.22240791]
[1741008470725,3.437,605.08,604.8,1.22240791]
[1741008472323,3.437,605.08,604.87,1.22240791]
[1741008474024,5.021,605.08,604.87,1.22240791]
[1741008475026,5.021,605.08,604.9,1.22240791]
[1741008477024,5.021,605.08,604.95,1.22240791]
[1741008479633,5.021,605.08,604.82,1.22240791]
[1741008482233,5.021,605.08,604.69,0.33074798]
[1741008492263,6.537,605.08,604.69,0.33074798]
[1741008492841,6.537,605.08,604.59,1.22240791]
[1741008493346,6.537,605.08,604.62,1.22240791]
[1741008493847,1.28594263,605.07,604.62,1.22240791]
[1741008494746,3.01203322,605.06,604.62,1.22240791]
[1741008495249,1.28594263,605.05,604.62,1.22240791]
[1741008495742,1.28594263,605.04,604.62,1.22240791]
[1741008496047,1.28594263,605.04,604.38,1.22240791]
[1741008496440,1.28594263,605.03,604.38,1.22240791]
[1741008497346,1.269,605.02,604.38,1.22240791]
[1741008498243,1.269,605.02,604.28,1.22240791]
[1741008498443,1.269,605.02,604.29,0.33096691]
[1741008500444,1.721,605.01,604.29,0.33096691]
[1741008503851,1.721,605.01,604.31,1.22240791]
[1741008504452,1.721,605.01,604.32,0.33095048]
[1741008506149,1.721,605.01,604.48,1.22240791]
[1741008506348,1.399,605.0,604.48,1.22240791]
[1741008508451,1.486,604.99,604.52,1.22240791]
[1741008510256,1.486,604.99,604.45,1.22240791]
[1741008510855,1.486,604.99,604.46,0.33087383]
[1741008512154,1.486,604.99,604.55,1.22240791]
[1741008515560,1.459,604.98,604.58,1.22240791]
[1741008517261,1.459,604.98,604.77,1.22240791]
[1741008520373,1.459,604.98,604.74,1.22240791]
[1741008522460,1.459,604.98,604.63,1.22240791]
[1741008522664,1.687,604.97,604.63,1.22240791]
[1741008524467,1.687,604.97,604.58,1.22240791]
[1741008526364,1.687,604.97,604.7,1.22240791]
[1741008527672,1.127,604.96,604.7,1.22240791]
[1741008528066,1.127,604.96,604.72,1.22240791]
[1741008529969,1.127,604.96,604.75,1.22240791]
[1741008530776,1.127,604.96,604.46,0.33087383]
[1741008533775,1.127,604.96,604.77,1.23172792]
[1741008536375,1.127,604.96,604.64,1.23172792]
[1741008538379,1.127,604.96,604.62,1.23172792]
[1741008539271,1.127,604.96,604.46,0.33087383]
[1741008539876,1.349,604.95,604.46,0.33087383]
[1741008542081,1.349,604.95,604.74,1.23141728]
[1741008542884,1.349,604.95,604.46,0.33087383]
[1741008546078,1.349,604.95,604.73,1.2323593]
[1741008546685,1.349,604.95,604.46,0.33087383]
[1741008548780,1.349,604.95,604.59,1.23222826]
[1741008550181,2.815,604.95,604.59,1.23222826]
[1741008550686,2.815,604.95,604.57,1.23222826]
[1741008552387,2.815,604.95,604.59,1.23222826]
[1741008555393,2.815,604.95,604.8,1.23222826]
[1741008555592,1.466,604.95,604.8,1.23222826]
[1741008558092,1.466,604.95,604.46,0.33087383]
[1741008558093,1.466,604.95,604.68,1.23222826]
[1741008558794,2.813,604.95,604.68,1.23222826]
[1741008560492,2.813,604.95,604.66,1.23222826]
[1741008560889,3.981,604.95,604.66,1.23222826]
[1741008561395,3.981,604.95,604.46,0.33087383]
[1741008562889,3.981,604.95,604.66,1.22830193]
[1741008564694,3.981,604.95,604.81,1.22830193]
[1741008564995,2.515,604.95,604.81,1.22830193]
[1741008566097,2.515,604.95,604.74,1.22830193]
[1741008567594,2.515,604.95,604.46,0.33087383]
[1741008568197,4.265,604.95,604.46,0.33087383]
[1741008568899,4.265,604.95,604.73,1.2282424]
[1741008571200,4.265,604.95,604.57,1.47389088]
[1741008571201,4.265,604.95,604.51,1.2282424]
[1741008572405,4.265,604.95,604.46,0.33087383]
[1741008574299,4.265,604.95,604.51,1.23070365]
[1741008576104,4.265,604.95,604.55,1.23070365]
[1741008578006,4.265,604.95,604.61,1.23070365]
[1741008578708,4.265,604.95,604.46,0.33087383]
[1741008581405,4.265,604.95,604.51,1.23189661]
[1741008584110,4.265,604.95,604.46,0.33087383]
[1741008603031,4.265,604.95,604.5,1.23189661]
[1741008606728,4.265,604.95,604.51,0.33084647]
[1741008614132,5.746,604.95,604.51,0.33084647]
[1741008615542,5.746,604.95,604.51,1.5601836]
[1741008617547,5.746,604.95,604.51,0.33084647]
[1741008619547,5.746,604.95,604.58,1.22933713]
[1741008619747,5.746,604.95,604.58,1.56014529]
[1741008622149,5.746,604.95,604.62,1.22933713]
[1741008624049,5.746,604.95,604.63,1.22933713]
[1741008626453,5.746,604.95,604.68,1.22933713]
[1741008628355,5.746,604.95,604.61,1.22933713]
[1741008631359,5.746,604.95,604.62,1.22933713]
[1741008632354,5.746,604.95,604.58,0.33080816]
[1741008634565,5.746,604.95,604.58,1.56014529]
[1741008636362,5.746,604.95,604.6,1.22933713]
[1741008639562,5.746,604.95,604.58,0.33080816]
[1741008639563,5.746,604.95,604.65,1.22933713]
[1741008640773,5.746,604.95,604.66,0.33076439]
[1741008648390,5.746,604.95,604.78,1.22933713]
[1741008648582,4.578,604.95,604.78,1.22933713]
[1741008648885,1.481,604.95,604.78,1.22933713]
[1741008650292,1.481,604.95,604.82,1.22933713]
[1741008652389,1.481,604.95,604.85,1.22933713]
[1741008656291,5.157,605.01,604.85,1.22933713]
[1741008656892,5.157,605.01,604.78,1.22933713]
[1741008659296,5.157,605.01,604.89,1.22933713]
[1741008662499,5.157,605.01,604.84,1.22933713]
[1741008664499,5.157,605.01,604.75,1.22933713]
[1741008666500,5.157,605.01,604.66,0.33076439]
[1741008666899,3.456,605.01,604.66,0.33076439]
[1741008667797,1.196,605.08,604.66,0.33076439]
[1741008668398,1.196,605.08,604.66,1.56010152]
[1741008670102,2.804,605.08,604.66,0.33076439]
[1741008671108,6.749,605.08,604.66,0.33076439]
[1741008672504,6.749,605.08,604.7,1.22933713]
[1741008673709,6.749,605.08,604.71,0.33073704]
[1741008675007,6.749,605.08,604.82,1.22933713]
[1741008676404,6.749,605.08,604.83,0.33067142]